fUSD/lending_fUSD_20241123
["ID","MTS","AMOUNT","RATE_DAILY","PERIOD"]
[343175861,1732398546589,-351.73,0.0004968,30]
[343175862,1732398546612,-351.73,0.0004968,30]
[343175863,1732398546635,-351.73,0.0004968,30]
[343175864,1732398546658,-351.73,0.0004968,30]
[343175865,1732398546680,-351.73,0.0004968,30]
[343175866,1732398546701,-351.73,0.0004968,30]
[343175867,1732398546725,-351.73,0.0004968,30]
[343175868,1732398546747,-351.73,0.0004968,30]
[343175869,1732398546771,-351.73,0.0004968,30]
[343175870,1732398546793,-1500.7,0.00049689,60]
[343175871,1732398546815,-500.0,0.00049689,120]
[343175872,1732398546838,-282.41353167,0.00049689,120]
[343175873,1732398546861,-305851.12227522,0.0004969,2]
[343175894,1732398631716,-150.0,0.00041458,2]
[343175895,1732398631727,-714.68,0.00047107,2]
[343175896,1732398631739,-1090.75,0.000489,120]
[343175897,1732398631755,-2909.25,0.000489,120]
[343175898,1732398631767,-160.17,0.00049137,2]
[343175899,1732398631777,-299.55,0.00049137,2]
[343175900,1732398631787,-714.68,0.00049371,2]
[343175901,1732398631797,-1000.0,0.0004949,2]
[343175902,1732398631808,-2500.0,0.0004959,2]
[343175903,1732398631818,-17109.0370322,0.0004969,2]
[343175904,1732398631839,-4202.2320185,0.0004969,2]
[343175983,1732398633196,-110081.82540897,0.0004969,2]
[343175985,1732398633208,-450.0,0.0004969,2]
[343176392,1732398637654,-500.0,0.0004969,2]
[343176393,1732398637664,-38276.04979189,0.0004969,2]
[343176394,1732398637676,-8355.461751,0.0004969,2]
[343176395,1732398637963,-8427.29559827,0.0004969,2]
[343176396,1732398637974,-109393.9120245,0.0004969,2]
[343176397,1732398638011,-5693.94736934,0.0004969,2]
[343176398,1732398638027,-110164.77873011,0.0004969,2]
[343176399,1732398638036,-5081.58342956,0.0004969,2]
[343176400,1732398638047,-3653.07704805,0.0004969,2]
[343176401,1732398638060,-5320.05376762,0.0004969,2]
[343176402,1732398638074,-12739.0364615,0.0004969,2]
[343176403,1732398638140,-39274.6130058,0.0004969,2]
[343176409,1732398639705,-342.108,0.0004969,2]
[343176410,1732398639718,-2356.26685585,0.0004969,2]
[343176411,1732398639742,-406.24944498,0.0004969,2]
[343176412,1732398639777,-8652.48260808,0.0004969,2]
[343176413,1732398639788,-382.48500009,0.0004969,2]
[343176414,1732398639894,-153067.93947847,0.0004969,2]
[343176415,1732398639904,-51803.35345363,0.00049694,2]
[343176416,1732398639914,-177.9306,0.00049699,2]
[343176417,1732398639923,-1000.0,0.000497,18]
[343176418,1732398639932,-10400.7764679,0.0004979,120]
[343176535,1732398642818,-372.025,0.0004979,120]
[343176555,1732398645754,-39927.1985311,0.0004979,120]
[343176556,1732398645764,-500.0,0.0004979,120]
[343176557,1732398645774,-5926.18608378,0.00049799,30]
[343176558,1732398645783,-276.77975718,0.000498,120]
[343176559,1732398645793,-2100.0,0.000498,18]
[343176560,1732398645803,-154.79,0.00049813,2]
[343176561,1732398645813,-188.74507376,0.00049899,30]
[343176562,1732398645823,-3200.0,0.000499,18]
[343176563,1732398645832,-166.82955001,0.000499,26]
[343176564,1732398645843,-5000.0,0.0004997,30]
[343176565,1732398645852,-500.0,0.00049973,10]
[343176566,1732398645861,-10000.0,0.0004998,30]
[343176567,1732398645871,-1000.0,0.00049999,30]
[343176568,1732398645880,-10000.0,0.00049999,120]
[343176569,1732398645890,-100000.0,0.0005,41]
[343176570,1732398645899,-18944.96280894,0.0005,60]
[343176571,1732398645911,-3913.70469668,0.0005,60]
[343176572,1732398645920,-4011.78099826,0.0005,100]
[343176573,1732398645930,-500.0,0.0005,2]
[343176574,1732398645939,-2000.0,0.0005,30]
[343176575,1732398645949,-1535.60155848,0.0005,60]
[343176576,1732398645958,-15036.04149058,0.0005,120]
[343176678,1732398829699,150.0,0.00024932,2]
[343176679,1732398829722,150.0,0.00024932,2]
[343176680,1732398829745,150.0,0.00024932,2]
[343176681,1732398829766,50.0,0.00024932,2]
[343176682,1732398836411,150.0,0.00024658,2]
[343176683,1732398836434,50.0,0.00024658,2]
[343176684,1732398896637,1422.0,0.000287,2]
[343176685,1732398897190,150.0,0.000287,2]
[343176686,1732398897248,1130.0,0.000287,2]
[343176690,1732399503006,800.0,0.00026986,120]
[343176760,1732399831973,-228.69,0.00041096,2]
[343176763,1732399831983,-165.4,0.00041096,2]
[343176766,1732399831993,-160.499166,0.00045972,2]
[343176768,1732399832003,-228.69,0.00046143,2]
[343176771,1732399832012,-658.46,0.00046368,2]
[343176773,1732399832022,-232.84026945,0.00047886,2]
[343176774,1732399832033,-67.15973055,0.00047886,2]
[343176776,1732399832043,-197.02,0.00047893,120]
[343176778,1732399832052,-110.5954859,0.00047984,2]
[343176781,1732399832066,-389.4045141,0.00047984,2]
[343176783,1732399832076,-7439.52431336,0.00048,120]
[343176784,1732399832091,-412.61568666,0.00048,120]
[343176785,1732399832101,-250.0,0.00048047,120]
[343176786,1732399832110,-939.13181154,0.00048085,2]
[343176787,1732399832186,-60.86818846,0.00048085,2]
[343176788,1732399832196,-1187.17,0.00048121,2]
[343176789,1732399832206,-257.62,0.00048135,120]
[343176790,1732399832216,-1599.87,0.00048154,2]
[343176791,1732399832225,-150.38,0.00048178,2]
[343176792,1732399832235,-1075.74,0.00048184,2]
[343176793,1732399832244,-720.77,0.00048339,2]
[343176794,1732399832253,-239.64,0.00048387,2]
[343176795,1732399832263,-801.26,0.0004846,83]
[343176796,1732399832272,-23900.0,0.00048461,2]
[343176797,1732399832281,-170.76,0.00048503,2]
[343176798,1732399832290,-165.68,0.00048574,2]
[343176799,1732399832300,-658.46,0.00048632,2]
[343176800,1732399832312,-486.1,0.00048642,120]
[343176801,1732399832321,-170.67,0.00048822,2]
[343176802,1732399832331,-250.0,0.00048838,120]
[343176803,1732399832340,-170.67,0.00048884,2]
[343176804,1732399832350,-170.67,0.00048945,2]
[343176806,1732399832359,-250.0,0.00048949,120]
[343176807,1732399832367,-170.67,0.00049006,2]
[343176809,1732399832377,-170.67,0.00049067,2]
[343176811,1732399832387,-1000.0,0.000491,7]
[343176813,1732399832397,-150.36,0.00049104,2]
[343176815,1732399832408,-150.0,0.00049271,2]
[343176816,1732399832418,-400.419,0.0004949,120]
[343176817,1732399832432,-157.112407,0.00049498,120]
[343176818,1732399832442,-5107.59088734,0.000495,2]
[343176819,1732399832451,-1400.0,0.000495,18]
[343176820,1732399832460,-1294.60504502,0.000495,15]
[343176821,1732399832470,-40497.39493489,0.0004958,2]
[343176825,1732399837814,-6634.11656511,0.0004958,2]
[343176827,1732399837824,-1000.0,0.0004959,2]
[343176828,1732399837834,-36472.13843489,0.0004959,2]
[343176829,1732399838022,-22145.76524381,0.0004959,2]
[343176830,1732399838246,-644.02035499,0.0004959,2]
[343176831,1732399838258,-20693.56265338,0.0004959,2]
[343176856,1732399840078,-315.21365329,0.0004959,2]
[343176857,1732399840089,-637.91499999,0.0004959,2]
[343176858,1732399840100,-382.78877764,0.0004959,2]
[343176859,1732399840263,-10260.43058964,0.0004959,2]
[343176868,1732399842896,-300.09,0.0004959,2]
[343176869,1732399843082,-51084.24199237,0.0004959,2]
[343176870,1732399843092,-258.24484731,0.0004959,30]
[343176871,1732399843102,-2900.0,0.000496,18]
[343176872,1732399843112,-177.27,0.00049603,2]
[343176873,1732399843123,-4400.0,0.000497,18]
[343176874,1732399843133,-5900.0,0.000498,18]
[343176875,1732399843142,-549.89593469,0.000498,7]
[343176876,1732399843154,-450.10406531,0.000498,7]
[343176877,1732399843164,-220.0,0.00049826,2]
[343176878,1732399843173,-513.34357229,0.00049856,2]
[343176879,1732399843183,-9112.88927205,0.00049858,2]
[343176947,1732399846122,-2413.39565147,0.00049858,2]
[343176948,1732399846236,-488.9,0.00049858,2]
[343176952,1732399941747,1800.0,0.00033,5]
[343176953,1732400025699,-1429.907759,0.00046732,2]
[343176954,1732400025732,-653.35,0.00046967,2]
[343176955,1732400025756,-1429.907759,0.00048623,117]
[343176956,1732400025767,-653.35,0.00048623,117]
[343176957,1732400025786,-1833.484482,0.00048623,117]
[343176958,1732400097001,-150.38,0.000485,2]
[343176959,1732400097032,-499.257759,0.00048623,117]
[343176960,1732400097063,-1086.67,0.00048784,120]
[343176961,1732400097093,-1134.86714977,0.00048861,30]
[343176962,1732400097125,-250.0,0.00048885,120]
[343176963,1732400097155,-175.64,0.00048885,2]
[343176964,1732400097186,-250.0,0.00048898,120]
[343176965,1732400097217,-191.71,0.00048901,2]
[343176966,1732400097517,-550.0,0.00048916,5]
[343176967,1732400097539,-150.38,0.00048917,2]
[343176968,1732400097559,-499.257759,0.00048917,2]
[343176969,1732400097572,-1086.67,0.00048917,2]
[343176970,1732400097583,-1134.86714977,0.00048917,2]
[343176971,1732400097596,-250.0,0.00048917,2]
[343176972,1732400097607,-175.64,0.00048917,2]
[343176973,1732400097619,-250.0,0.00048917,2]
[343176974,1732400097630,-191.71,0.00048917,2]
[343176975,1732400097644,-550.0,0.00048917,2]
[343176976,1732400097663,-7422.95018246,0.00048917,2]
[343176978,1732400176440,-1992.68,0.00047,2]
[343176979,1732400176472,-207.13,0.00048,60]
[343176980,1732400176503,-196.81,0.00048,60]
[343176981,1732400176538,-200.0,0.00048,30]
[343176982,1732400176571,-360.38,0.00048879,2]
[343176983,1732400176605,-527.0,0.00048916,5]
[343176984,1732400176868,-3660.21733223,0.00048917,2]
[343176985,1732400198310,150.0,0.00031,2]
[343176986,1732400198332,100.0,0.00031,2]
[343176987,1732400200010,50.0,0.00033,2]
[343176988,1732400200032,150.0,0.00033,2]
[343176989,1732400200053,100.0,0.00033,2]
[343176990,1732400204256,150.0,0.00035,2]
[343176991,1732400204277,200.0,0.00035,2]
[343176992,1732400278430,-500.0,0.00048875,2]
[343176993,1732400278469,-1000.0,0.00048882,2]
[343176994,1732400278515,-3000.0,0.00048917,2]
[343176996,1732400420551,150.0,0.00031404,30]
[343176997,1732400420577,197.36033964,0.00031404,30]
[343176998,1732400420602,150.0,0.00031404,30]
[343176999,1732400420631,150.0,0.00031404,30]
[343177000,1732400420655,150.0,0.00031404,30]
[343177001,1732400420687,150.0,0.00031404,30]
[343177002,1732400420723,150.0,0.00031404,30]
[343177003,1732400420745,150.0,0.00031404,30]
[343177004,1732400420767,150.0,0.00031404,30]
[343177005,1732400420788,150.0,0.00031404,30]
[343177006,1732400420811,150.0,0.00031404,30]
[343177007,1732400420832,150.0,0.00031404,30]
[343177008,1732400420856,150.0,0.00031404,30]
[343177009,1732400420877,150.0,0.00031404,30]
[343177010,1732400420898,150.0,0.00031404,30]
[343177011,1732400420920,150.0,0.00031404,30]
[343177012,1732400420943,150.0,0.00031404,30]
[343177013,1732400420966,32.46228665,0.00031404,30]
[343177014,1732400555762,150.0,0.00035001,2]
[343177015,1732400555784,150.0,0.00035001,2]
[343177016,1732400555806,150.0,0.00035001,2]
[343177017,1732400555828,150.0,0.00035001,2]
[343177018,1732400555849,150.0,0.00035001,2]
[343177021,1732400631025,169.9812547,0.00035,2]
[343177022,1732400707975,516690.56830989,0.00013,2]
[343177023,1732400710346,191.67191013,0.000275,2]
[343177024,1732400716928,3384.03316532,0.00028,2]
[343177025,1732400740127,582.50256055,0.000256,2]
[343177026,1732400759676,4312.710296,0.00026,2]
[343177027,1732400915289,3225.2940709,0.000251,2]
[343177028,1732400916471,4600.00242758,0.000328,2]
[343177063,1732401003760,150.0,0.000328,2]
[343177064,1732401004257,150.0,0.000328,2]
[343177065,1732401004479,150.0,0.000328,2]
[343177075,1732401032014,-10302.11900883,0.000399,2]
[343177076,1732401032024,-1133.30075125,0.0004,2]
[343177077,1732401032034,-4002.40526398,0.0004,2]
[343177078,1732401032044,-155.66,0.00041096,2]
[343177079,1732401032054,-153.35,0.00041096,2]
[343177080,1732401032064,-620.68,0.00046802,2]
[343177081,1732401032074,-3172.960817,0.00047,30]
[343177082,1732401032085,-489.20124624,0.00047,30]
[343177083,1732401032212,-858.05,0.00047,30]
[343177084,1732401032237,-10204.0,0.00047,30]
[343177085,1732401032260,-1635.4878737,0.00047,30]
[343177086,1732401032365,-8234.31120648,0.00047,30]
[343177087,1732401032377,-150.0,0.00047837,2]
[343177088,1732401032388,-500.0,0.0004828,2]
[343177089,1732401032397,-180.19,0.00048283,2]
[343177090,1732401032407,-250.0,0.0004843,120]
[343177091,1732401032417,-155.66,0.00048472,2]
[343177092,1732401032427,-153.36,0.00048533,2]
[343177093,1732401032437,-250.0,0.00048559,120]
[343177094,1732401032447,-165.68,0.00048732,2]
[343177095,1732401032457,-175.64,0.00048742,2]
[343177096,1732401032466,-641.008,0.00048778,84]
[343177097,1732401032475,-343.86,0.00048778,120]
[343177098,1732401032485,-23900.0,0.00048823,2]
[343177100,1732401032494,-250.0,0.00048882,120]
[343177102,1732401032504,-620.68,0.00049066,2]
[343177104,1732401032513,-244.73,0.00049102,120]
[343177105,1732401032524,-1000.0,0.000493,7]
[343177106,1732401032534,-217.2932,0.000494,2]
[343177107,1732401032543,-183.9819513,0.000494,28]
[343177108,1732401032553,-1165.1445405,0.0004947,15]
[343177109,1732401032562,-380.426,0.0004949,120]
[343177110,1732401032574,-11641.0199,0.0004949,2]
[343177111,1732401032583,-2749.76694313,0.0004949,2]
[343177112,1732401032595,-250.0,0.0004949,2]
[343177113,1732401032609,-3104.90805687,0.0004949,2]
[343177114,1732401032618,-1000.0,0.0004949,2]
[343177115,1732401032627,-157.112407,0.00049498,120]
[343177116,1732401032636,-4198.60603663,0.000495,120]
[343177117,1732401032649,-2241.28478003,0.000495,120]
[343177118,1732401032662,-6127.228,0.000495,120]
[343177119,1732401032676,-494.73,0.000495,120]
[343177123,1732401038275,-1084.89810016,0.0004851,30]
[343177124,1732401038285,-547.68947217,0.00049499,120]
[343177125,1732401038295,-2884.15094767,0.000495,120]
[343177126,1732401038557,-2468.06807304,0.000495,120]
[343177127,1732401040036,-1076.3571388,0.000495,120]
[343177128,1732401040060,-28479.59668962,0.000495,120]
[343177129,1732401040075,-37733.54120367,0.000495,120]
[343177130,1732401040290,-300.91263939,0.000495,120]
[343177131,1732401040311,-1215.76648208,0.000495,120]
[343177140,1732401044091,-517.11950585,0.000495,120]
[343177141,1732401044103,-1205.8295763,0.000495,120]
[343177142,1732401044265,-829.70800192,0.000495,120]
[343177143,1732401044362,-25335.52619622,0.000495,120]
[343177158,1732401046033,-1384.67042216,0.000495,120]
[343177159,1732401046045,-738.949995,0.000495,120]
[343177160,1732401046057,-3403.9,0.000495,120]
[343177161,1732401046070,-862.43,0.000495,120]
[343177162,1732401046429,-659.134045,0.000495,120]
[343177167,1732401689410,3055.0,0.00035,5]
[343177168,1732401901866,150.0,0.00034548,10]
[343177169,1732402014019,250.0,0.00031,2]
[343177190,1732402232281,-375.86180314,0.0004,2]
[343177191,1732402232293,-313.13819686,0.0004,2]
[343177192,1732402232302,-686.0,0.0004,2]
[343177193,1732402232312,-686.0,0.0004,2]
[343177194,1732402232321,-686.0,0.0004,2]
[343177195,1732402232330,-213.61,0.00041096,2]
[343177196,1732402232340,-213.61,0.00046143,2]
[343177197,1732402232349,-595.8,0.00046299,2]
[343177198,1732402232359,-172.67,0.00046823,10]
[343177199,1732402232370,-250.0,0.00047745,120]
[343177200,1732402232379,-165.68,0.00047794,2]
[343177201,1732402232389,-250.0,0.00047794,120]
[343177202,1732402232399,-1399.04,0.00047795,2]
[343177203,1732402232408,-7960.87895151,0.00047818,2]
[343177204,1732402232529,-15939.12104849,0.00047818,2]
[343177205,1732402232539,-197.02,0.00047899,120]
[343177206,1732402232548,-150.0,0.00047957,2]
[343177207,1732402232558,-250.0,0.00048049,120]
[343177208,1732402232567,-150.31,0.00048071,2]
[343177209,1732402232578,-180.52,0.00048106,2]
[343177210,1732402232588,-1998.78,0.00048191,2]
[343177211,1732402232598,-4418.0,0.0004825,117]
[343177212,1732402232608,-9780.12,0.00048309,7]
[343177213,1732402232618,-150.0,0.00048361,2]
[343177214,1732402232627,-500.0,0.00048368,2]
[343177215,1732402232637,-150.0,0.00048438,2]
[343177216,1732402232646,-386.14,0.00048459,2]
[343177217,1732402232655,-1000.0,0.0004852,2]
[343177218,1732402232664,-232.49,0.00048532,120]
[343177220,1732402232673,-595.8,0.00048563,2]
[343177221,1732402232682,-165.81,0.00048615,2]
[343177222,1732402232691,-153.36,0.00048648,2]
[343177223,1732402232700,-900.0,0.000487,17]
[343177224,1732402232709,-388.88,0.00048703,120]
[343177225,1732402232718,-512.807,0.00048703,84]
[343177226,1732402232727,-1900.0,0.000488,17]
[343177227,1732402232736,-2800.0,0.000489,17]
[343177228,1732402232745,-1000.0,0.00048999,9]
[343177229,1732402232754,-28200.999998,0.00049,120]
[343177230,1732402232764,-666.0,0.00049,3]
[343177231,1732402232772,-6404.71,0.000491,7]
[343177232,1732402232782,-1000.0,0.000492,7]
[343177233,1732402232790,-1000.0,0.000494,2]
[343177234,1732402232800,-4659.551,0.000494,2]
[343177235,1732402232809,-1048.63008645,0.000494,15]
[343177236,1732402232819,-160.98420744,0.000494,28]
[343177237,1732402232829,-4991.415327,0.000494,15]
[343177238,1732402232839,-361.417,0.0004949,120]
[343177239,1732402232850,-157.112407,0.00049498,120]
[343177240,1732402232861,-383.38263052,0.00049499,120]
[343177241,1732402232872,-24902.39701592,0.000495,38]
[343177249,1732402238347,-18139.23758,0.000495,38]
[343177250,1732402238455,-293.52900344,0.000495,38]
[343177251,1732402238467,-69096.97811906,0.000495,38]
[343177252,1732402238479,-5024.82931398,0.000495,38]
[343177253,1732402238490,-45960.0,0.000495,38]
[343177254,1732402238608,-4031.9446407,0.000495,38]
[343177255,1732402238621,-3168.29623028,0.000495,38]
[343177263,1732402243237,-243.59,0.00048869,2]
[343177264,1732402243246,-1285.9499998,0.000495,38]
[343177265,1732402243258,-490.57113645,0.000495,38]
[343177266,1732402243271,-255.31899999,0.000495,38]
[343177267,1732402243283,-505.71,0.000495,38]
[343177273,1732402243356,-13496.42486112,0.000495,38]
[343177274,1732402243490,-34544.60320012,0.000495,38]
[343177275,1732402243528,-2086.2500005,0.000495,38]
[343177276,1732402243575,-7861.92801612,0.000495,38]
[343177277,1732402243587,-3371.89999999,0.000495,38]
[343177296,1732402246708,-383.5086327,0.000494,2]
[343177297,1732402246718,-610.19008711,0.000495,38]
[343177298,1732402246730,-3510.11084102,0.000495,38]
[343177299,1732402246741,-2210.59398019,0.000495,38]
[343177300,1732402512428,1152.0,0.000253,2]
[343177301,1732402513048,1037.0,0.000253,2]
[343177302,1732402513819,173.87525,0.000325,2]
[343177304,1732402625960,276.47,0.00027356,2]
[343177328,1732403432366,-268.36784137,0.00039997,31]
[343177329,1732403432377,-961.27744541,0.00039998,15]
[343177331,1732403432387,-4492.2737943,0.00039998,15]
[343177332,1732403432398,-160.98420737,0.00039998,2]
[343177334,1732403432407,-62148.15572155,0.00039998,2]
[343177336,1732403432592,-82692.14008868,0.00039998,2]
[343177337,1732403432614,-819.50590436,0.00039998,2]
[343177338,1732403432627,-1716.45374797,0.00039998,2]
[343177339,1732403432639,-3835.1558,0.00039998,2]
[343177340,1732403432651,-309.01,0.00039998,2]
[343177341,1732403432663,-1280.49409564,0.00039998,2]
[343177350,1732403438578,-30114.48963922,0.00039998,2]
[343177351,1732403438594,-7371.14100329,0.00039998,2]
[343177357,1732403440455,-439.090888,0.00039998,2]
[343177358,1732403440778,-300.0,0.00039998,2]
[343177377,1732403443743,-648.77816825,0.00039998,2]
[343177380,1732403443755,-23127.2350993,0.00039998,2]
[343177381,1732403443766,-4042.99387845,0.00039998,2]
[343177382,1732403443778,-4756.16220596,0.00039998,2]
[343177383,1732403443789,-432.22086,0.00039998,2]
[343177384,1732403446421,-951.0,0.00039998,2]
[343177385,1732403446433,-2458.62500081,0.00039998,2]
[343177386,1732403446481,-496.65817406,0.00039998,2]
[343177387,1732403446573,-92699.47011666,0.00039998,2]
[343177390,1732403823276,150.0,0.00031,2]
[343177391,1732403823306,100.0,0.00031,2]
[343177392,1732403825496,50.0,0.00033,2]
[343177393,1732403825520,250.0,0.00033,2]
[343177394,1732403827272,350.0,0.00035,2]
[343177395,1732404347064,-250.0,0.00046059,120]
[343177396,1732404347099,-410.245,0.0004606,76]
[343177397,1732404347130,-220.86,0.00046225,120]
[343177398,1732404347162,-250.0,0.0004638,120]
[343177399,1732404347197,-311.1,0.00046472,120]
[343177400,1732404347228,-30150.819,0.00046544,30]
[343177401,1732404347259,-433.47,0.00047394,30]
[343177402,1732404347291,-275.08,0.00048,120]
[343177403,1732404347323,-4419.0,0.00048223,117]
[343177404,1732404347353,-220.86,0.00048809,120]
[343177405,1732404347382,-150.0,0.00048846,30]
[343177406,1732404347410,-150.0,0.00048846,30]
[343177407,1732404347441,-150.0,0.00048846,30]
[343177408,1732404347469,-217.02,0.00048846,30]
[343177409,1732404347497,-663.14,0.00048846,30]
[343177410,1732404347526,-308.49,0.00048846,30]
[343177411,1732404347555,-150.0,0.00048846,30]
[343177412,1732404347583,-150.0,0.00048846,30]
[343177413,1732404347611,-150.0,0.00048846,30]
[343177414,1732404347639,-150.0,0.00048846,30]
[343177415,1732404347667,-187.85748896,0.00048899,120]
[343177416,1732404347700,-5000.0,0.00049,120]
[343177417,1732404347729,-162444.64623965,0.00049,120]
[343177418,1732404347930,-299.41835218,0.00049,30]
[343177419,1732404347963,-5000.0,0.000491,120]
[343177420,1732404347995,-343.312,0.000491,120]
[343177421,1732404348024,-5000.0,0.000492,120]
[343177422,1732404348053,-1064.0,0.0004925,120]
[343177423,1732404348083,-4519.0,0.000493,120]
[343177424,1732404348111,-1000.0,0.0004935,120]
[343177425,1732404348146,-151.0,0.00049399,120]
[343177426,1732404348177,-151.0,0.00049399,120]
[343177427,1732404348207,-151.0,0.00049399,120]
[343177428,1732404348237,-151.0,0.00049399,120]
[343177429,1732404348268,-5000.0,0.000494,120]
[343177430,1732404348299,-151.0,0.000494,120]
[343177431,1732404348327,-151.0,0.000494,120]
[343177432,1732404348356,-151.0,0.000494,120]
[343177433,1732404348386,-151.0,0.000494,120]
[343177434,1732404348418,-151.0,0.000494,120]
[343177435,1732404348450,-151.0,0.000494,120]
[343177436,1732404348482,-151.0,0.000494,120]
[343177437,1732404348513,-157.112408,0.00049498,120]
[343177438,1732404348543,-1000.0,0.00049499,30]
[343177439,1732404348574,-1000.0,0.00049499,30]
[343177440,1732404348606,-17259.48652062,0.000495,120]
[343177441,1732404348635,-47726.53824321,0.000495,120]
[343177442,1732404348665,-4741.06739074,0.000495,30]
[343177443,1732404348697,-114303.69059135,0.000495,45]
[343177444,1732404348728,-315.01853079,0.000495,120]
[343177445,1732404348759,-151.0,0.000495,120]
[343177446,1732404348789,-151.0,0.000495,120]
[343177447,1732404348818,-151.0,0.000495,120]
[343177448,1732404348851,-151.0,0.000495,120]
[343177449,1732404348881,-151.0,0.000495,120]
[343177450,1732404348916,-151.0,0.000495,120]
[343177451,1732404348947,-151.0,0.000495,120]
[343177452,1732404348977,-245.394323,0.000495,120]
[343177453,1732404349007,-151.0,0.000495,120]
[343177454,1732404349037,-156.61777,0.000495,120]
[343177455,1732404349067,-151.0,0.000495,120]
[343177456,1732404349096,-181.625041,0.000495,120]
[343177457,1732404349124,-151.0,0.000495,120]
[343177458,1732404349154,-151.0,0.000495,120]
[343177459,1732404349185,-151.0,0.000495,120]
[343177460,1732404349215,-151.0,0.000495,120]
[343177461,1732404349244,-151.0,0.000495,120]
[343177462,1732404349278,-151.0,0.000495,120]
[343177463,1732404349307,-151.0,0.000495,120]
[343177464,1732404349338,-151.0,0.000495,120]
[343177465,1732404349368,-151.0,0.000495,120]
[343177466,1732404349399,-263.815359,0.000495,120]
[343177467,1732404349428,-187.92779,0.000495,120]
[343177468,1732404349459,-151.0,0.000495,120]
[343177469,1732404349489,-151.0,0.000495,120]
[343177470,1732404349520,-151.0,0.000495,120]
[343177471,1732404349551,-151.0,0.000495,120]
[343177472,1732404349582,-151.0,0.000495,120]
[343177473,1732404349613,-237.672955,0.000495,120]
[343177474,1732404349643,-151.0,0.000495,120]
[343177475,1732404349675,-226.898896,0.000495,120]
[343177476,1732404349706,-323.259615,0.000495,120]
[343177477,1732404349738,-323.259615,0.000495,120]
[343177478,1732404349769,-323.259615,0.000495,120]
[343177479,1732404349800,-323.259615,0.000495,120]
[343177480,1732404349829,-323.259615,0.000495,120]
[343177481,1732404349860,-323.259615,0.000495,120]
[343177482,1732404349891,-323.259615,0.000495,120]
[343177483,1732404349927,-323.259615,0.000495,120]
[343177484,1732404349963,-323.259615,0.000495,120]
[343177485,1732404349995,-323.259615,0.000495,120]
[343177486,1732404350043,-617.510067,0.000495,120]
[343177487,1732404350080,-617.510067,0.000495,120]
[343177488,1732404350113,-617.510067,0.000495,120]
[343177489,1732404350145,-617.510067,0.000495,120]
[343177490,1732404350179,-617.510067,0.000495,120]
[343177491,1732404350212,-617.510067,0.000495,120]
[343177492,1732404350244,-617.510067,0.000495,120]
[343177493,1732404350275,-617.510067,0.000495,120]
[343177494,1732404350305,-617.510067,0.000495,120]
[343177495,1732404350339,-617.510067,0.000495,120]
[343177496,1732404350369,-401.945637,0.000495,120]
[343177497,1732404350399,-401.945637,0.000495,120]
[343177498,1732404350429,-401.945637,0.000495,120]
[343177499,1732404350459,-401.945637,0.000495,120]
[343177500,1732404350488,-401.945637,0.000495,120]
[343177501,1732404350519,-401.945637,0.000495,120]